fUSD/lending_fUSD_20260516
["ID","MTS","AMOUNT","RATE_DAILY","PERIOD"]
[422430251,1778943041000,-150.0,0.00013488,2]
[422430260,1778943041000,-19181.1207,0.00013516,2]
[422430243,1778943041000,-150.0,0.00013488,2]
[422430255,1778943041000,-150.0,0.00013488,2]
[422430253,1778943041000,-150.0,0.00013488,2]
[422430235,1778943041000,-1136.04,0.00013414,2]
[422430333,1778943042000,-420.0,0.00013938,2]
[422430321,1778943042000,-3074.390458,0.00013787,2]
[422430331,1778943042000,-5833.26708778,0.00013925,2]
[422430330,1778943042000,-150.0,0.00013923,2]
[422430337,1778943042000,-150.0,0.00013987,2]
[422430329,1778943042000,-658.52873662,0.00013891,2]
[422430323,1778943042000,-150.0,0.00013826,2]
[422430328,1778943042000,-500.0,0.00013885,2]
[422430325,1778943042000,-150.0,0.00013862,2]
[422430326,1778943042000,-150.0,0.00013874,2]
[422430320,1778943042000,-189.456192,0.00013787,2]
[422430332,1778943042000,-166.69,0.00013927,2]
[422430327,1778943042000,-255.0,0.00013882,2]
[422430334,1778943042000,-150.0,0.00013949,2]
[422430348,1778943042000,-150.0,0.00014068,2]
[422430336,1778943042000,-1680.0,0.00013977,2]
[422430338,1778943042000,-2609.27438632,0.0001399,2]
[422430339,1778943042000,-250.0,0.00014,2]
[422430340,1778943042000,-2500.0,0.00014003,2]
[422430343,1778943042000,-150.0,0.00014019,2]
[422430344,1778943042000,-163.0,0.0001404,2]
[422430342,1778943042000,-300.0,0.00014003,2]
[422430341,1778943042000,-300.0,0.00014003,2]
[422430345,1778943042000,-2312.0,0.0001404,2]
[422430346,1778943042000,-289.0,0.0001404,2]
[422430349,1778943042000,-1136.04,0.00014068,2]
[422430350,1778943042000,-150.0,0.00014116,2]
[422430352,1778943042000,-150.0,0.00014164,2]
[422430324,1778943042000,-150.0,0.00013834,2]
[422430335,1778943042000,-150.0,0.00013971,2]
[422430322,1778943042000,-2339.243957,0.00013795,2]
[422430298,1778943042000,-529.54071265,0.00013698,2]
[422430319,1778943042000,-273.308241,0.00013787,2]
[422430289,1778943042000,-500.0,0.00013698,2]
[422430290,1778943042000,-500.0,0.00013698,2]
[422430295,1778943042000,-506.02433073,0.00013698,2]
[422430291,1778943042000,-504.92605126,0.00013698,2]
[422430292,1778943042000,-500.0,0.00013698,2]
[422430351,1778943042000,-166.69,0.00014155,2]
[422430296,1778943042000,-500.0,0.00013698,2]
[422430293,1778943042000,-500.0,0.00013698,2]
[422430294,1778943042000,-500.0,0.00013698,2]
[422430297,1778943042000,-500.0,0.00013698,2]
[422430300,1778943042000,-166.69,0.00013699,2]
[422430299,1778943042000,-500.33214469,0.00013698,2]
[422430301,1778943042000,-423.08,0.00013699,2]
[422430302,1778943042000,-200.0,0.00013699,2]
[422430304,1778943042000,-195.921761,0.00013699,2]
[422430305,1778943042000,-361.895303,0.00013699,2]
[422430306,1778943042000,-361.895303,0.00013699,2]
[422430307,1778943042000,-361.895303,0.00013699,2]
[422430303,1778943042000,-151.0,0.00013699,2]
[422430309,1778943042000,-166.66,0.00013709,2]
[422430308,1778943042000,-361.895303,0.00013699,2]
[422430310,1778943042000,-150.0,0.00013718,2]
[422430311,1778943042000,-2312.0,0.0001372,2]
[422430313,1778943042000,-279.62041564,0.00013724,2]
[422430312,1778943042000,-2312.0,0.0001372,2]
[422430314,1778943042000,-150.0,0.00013729,2]
[422430316,1778943042000,-15303.729807,0.00013741,2]
[422430318,1778943042000,-150.0,0.00013778,2]
[422430317,1778943042000,-733.754806,0.00013759,2]
[422430315,1778943042000,-1136.04,0.00013741,2]
[422430354,1778943042000,-150.0,0.00014179,2]
[422430347,1778943042000,-150.0,0.00014064,2]
[422430355,1778943042000,-180.32566322,0.00014188,2]
[422430386,1778943042000,-150.0,0.00014612,2]
[422430390,1778943042000,-150.0,0.00014696,2]
[422430391,1778943042000,-624.45984,0.00014723,2]
[422430393,1778943042000,-150.0,0.00014745,2]
[422430399,1778943042000,-150.0,0.00014841,2]
[422430392,1778943042000,-961.853717,0.00014736,2]
[422430402,1778943042000,-150.0,0.00014871,2]
[422430398,1778943042000,-30089.6648817,0.00014836,2]
[422430400,1778943042000,-350.0,0.00014847,2]
[422430396,1778943042000,-500.0,0.00014835,2]
[422430394,1778943042000,-150.0,0.00014756,2]
[422430397,1778943042000,-500.0,0.00014835,2]
[422430395,1778943042000,-150.0,0.00014793,2]
[422430404,1778943042000,-500.0,0.00014889,2]
[422430384,1778943042000,-150.0,0.000146,2]
[422430403,1778943042000,-500.0,0.0001488,2]
[422430405,1778943042000,-500.0,0.00014889,2]
[422430408,1778943042000,-33147.836,0.00014891,2]
[422430407,1778943042000,-150.0,0.0001489,2]
[422430410,1778943042000,-500.0,0.00014894,2]
[422430413,1778943042000,-350.0,0.00014897,2]
[422430414,1778943042000,-1498.88064894,0.000149,2]
[422430412,1778943042000,-164.49,0.00014895,2]
[422430409,1778943042000,-5000.0,0.00014891,2]
[422430411,1778943042000,-150.0,0.00014895,2]
[422430415,1778943042000,-604.57774349,0.000149,2]
[422430416,1778943042000,-399.68101146,0.000149,2]
[422430417,1778943042000,-540.85171536,0.000149,2]
[422430353,1778943042000,-5833.26708778,0.00014169,2]
[422430418,1778943042000,-3117.01721666,0.000149,2]
[422430406,1778943042000,-500.0,0.00014889,2]
[422430389,1778943042000,-2312.0,0.0001468,2]
[422430401,1778943042000,-2000.0,0.00014861,2]
[422430388,1778943042000,-150.0,0.00014648,2]
[422430357,1778943042000,-150.0,0.00014237,2]
[422430387,1778943042000,-150.0,0.0001464,2]
[422430358,1778943042000,-587.0,0.00014255,5]
[422430356,1778943042000,-150.0,0.00014213,2]
[422430361,1778943042000,-150.0,0.0001431,2]
[422430360,1778943042000,-150.0,0.00014295,2]
[422430362,1778943042000,-152.0,0.00014348,7]
[422430364,1778943042000,-150.0,0.00014358,2]
[422430363,1778943042000,-152.0,0.00014352,7]
[422430365,1778943042000,-2312.0,0.0001436,2]
[422430368,1778943042000,-1136.04,0.00014395,2]
[422430367,1778943042000,-166.69,0.00014384,2]
[422430369,1778943042000,-152.0,0.00014402,7]
[422430375,1778943042000,-150.0,0.00014487,2]
[422430373,1778943042000,-4367.41118972,0.00014449,2]
[422430359,1778943042000,-150.0,0.00014261,2]
[422430370,1778943042000,-150.0,0.00014406,2]
[422430374,1778943042000,-150.0,0.00014455,2]
[422430379,1778943042000,-1462.64,0.00014497,2]
[422430383,1778943042000,-150.0,0.00014551,2]
[422430382,1778943042000,-150.0,0.00014525,2]
[422430381,1778943042000,-150.0,0.00014503,2]
[422430380,1778943042000,-5075.28,0.00014497,2]
[422430385,1778943042000,-1804.38270686,0.000146,2]
[422430377,1778943042000,-179.48,0.00014497,2]
[422430378,1778943042000,-462.3,0.00014497,2]
[422430372,1778943042000,-5833.26708778,0.00014413,2]
[422430371,1778943042000,-150.0,0.0001441,2]
[422430376,1778943042000,-500.0,0.00014496,2]
[422430366,1778943042000,-163.0,0.0001436,2]
[422430467,1778943043000,-500.0,0.00014991,2]
[422430477,1778943043000,-500.0,0.00014991,2]
[422430469,1778943043000,-500.0,0.00014991,2]
[422430471,1778943043000,-500.0,0.00014991,2]
[422430473,1778943043000,-500.0,0.00014991,2]
[422430483,1778943043000,-500.0,0.00014991,2]
[422430484,1778943043000,-500.0,0.00014991,2]
[422430482,1778943043000,-500.0,0.00014991,2]
[422430465,1778943043000,-500.0,0.00014991,2]
[422430487,1778943043000,-500.0,0.00014991,2]
[422430486,1778943043000,-500.0,0.00014991,2]
[422430475,1778943043000,-500.0,0.00014991,2]
[422430485,1778943043000,-500.0,0.00014991,2]
[422430479,1778943043000,-500.0,0.00014991,2]
[422430491,1778943043000,-500.0,0.00014991,2]
[422430480,1778943043000,-500.0,0.00014991,2]
[422430488,1778943043000,-500.0,0.00014991,2]
[422430500,1778943043000,-500.0,0.00014991,2]
[422430490,1778943043000,-500.0,0.00014991,2]
[422430489,1778943043000,-500.0,0.00014991,2]
[422430492,1778943043000,-500.0,0.00014991,2]
[422430494,1778943043000,-500.0,0.00014991,2]
[422430493,1778943043000,-500.0,0.00014991,2]
[422430497,1778943043000,-500.0,0.00014991,2]
[422430495,1778943043000,-500.0,0.00014991,2]
[422430498,1778943043000,-500.0,0.00014991,2]
[422430496,1778943043000,-500.0,0.00014991,2]
[422430454,1778943043000,-500.0,0.00014991,2]
[422430481,1778943043000,-500.0,0.00014991,2]
[422430453,1778943043000,-500.0,0.00014991,2]
[422430423,1778943043000,-799.0,0.00014986,5]
[422430463,1778943043000,-500.0,0.00014991,2]
[422430501,1778943043000,-500.0,0.00014991,2]
[422430419,1778943043000,-150.0,0.00014938,2]
[422430431,1778943043000,-500.0,0.0001499,2]
[422430421,1778943043000,-601.50431683,0.0001497,2]
[422430420,1778943043000,-400.0,0.0001497,2]
[422430430,1778943043000,-151.0,0.00014988,2]
[422430424,1778943043000,-150.0,0.00014986,2]
[422430425,1778943043000,-198.31703429,0.00014986,2]
[422430426,1778943043000,-150.0,0.00014986,2]
[422430427,1778943043000,-150.00000001,0.00014986,2]
[422430428,1778943043000,-789.0,0.00014988,5]
[422430432,1778943043000,-235.7435249,0.0001499,2]
[422430434,1778943043000,-198.911634,0.00014991,2]
[422430444,1778943043000,-500.0,0.00014991,2]
[422430461,1778943043000,-500.0,0.00014991,2]
[422430435,1778943043000,-198.911634,0.00014991,2]
[422430446,1778943043000,-500.0,0.00014991,2]
[422430436,1778943043000,-198.911634,0.00014991,2]
[422430438,1778943043000,-500.0,0.00014991,2]
[422430439,1778943043000,-500.0,0.00014991,2]
[422430440,1778943043000,-500.0,0.00014991,2]
[422430441,1778943043000,-500.0,0.00014991,2]
[422430437,1778943043000,-198.911634,0.00014991,2]
[422430442,1778943043000,-500.0,0.00014991,2]
[422430448,1778943043000,-500.0,0.00014991,2]
[422430449,1778943043000,-500.0,0.00014991,2]
[422430456,1778943043000,-500.0,0.00014991,2]
[422430458,1778943043000,-500.0,0.00014991,2]
[422430459,1778943043000,-500.0,0.00014991,2]
[422430451,1778943043000,-500.0,0.00014991,2]
[422430433,1778943043000,-235.7435249,0.0001499,2]
[422430503,1778943043000,-500.0,0.00014991,2]
[422430499,1778943043000,-500.0,0.00014991,2]
[422430513,1778943043000,-500.0,0.00014991,2]
[422430537,1778943043000,-500.0,0.00014991,2]
[422430536,1778943043000,-500.0,0.00014991,2]
[422430542,1778943043000,-500.0,0.00014991,2]
[422430552,1778943043000,-361.895303,0.00014991,2]
[422430554,1778943043000,-361.895303,0.00014991,2]
[422430541,1778943043000,-500.0,0.00014991,2]
[422430543,1778943043000,-170.940753,0.00014991,2]
[422430544,1778943043000,-151.0,0.00014991,2]
[422430553,1778943043000,-151.0,0.00014991,2]
[422430545,1778943043000,-151.0,0.00014991,2]
[422430547,1778943043000,-1158.867927,0.00014991,2]
[422430549,1778943043000,-1158.867927,0.00014991,2]
[422430548,1778943043000,-1158.867927,0.00014991,2]
[422430546,1778943043000,-151.0,0.00014991,2]
[422430550,1778943043000,-1158.867927,0.00014991,2]
[422430551,1778943043000,-361.895303,0.00014991,2]
[422430556,1778943043000,-361.895303,0.00014991,2]
[422430555,1778943043000,-151.0,0.00014991,2]
[422430557,1778943043000,-151.0,0.00014991,2]
[422430566,1778943043000,-151.0,0.00014991,2]
[422430567,1778943043000,-151.0,0.00014991,2]
[422430559,1778943043000,-151.0,0.00014991,2]
[422430558,1778943043000,-151.0,0.00014991,2]
[422430563,1778943043000,-1763.02757,0.00014991,2]
[422430565,1778943043000,-151.0,0.00014991,2]
[422430560,1778943043000,-151.0,0.00014991,2]
[422430561,1778943043000,-1763.02757,0.00014991,2]
[422430564,1778943043000,-1763.02757,0.00014991,2]
[422430562,1778943043000,-1763.02757,0.00014991,2]
[422430532,1778943043000,-500.0,0.00014991,2]
[422430538,1778943043000,-151.0,0.00014991,2]
[422430568,1778943043000,-151.0,0.00014991,2]
[422430533,1778943043000,-500.0,0.00014991,2]
[422430535,1778943043000,-500.0,0.00014991,2]
[422430504,1778943043000,-500.0,0.00014991,2]
[422430511,1778943043000,-500.0,0.00014991,2]
[422430505,1778943043000,-500.0,0.00014991,2]
[422430508,1778943043000,-500.0,0.00014991,2]
[422430512,1778943043000,-500.0,0.00014991,2]
[422430510,1778943043000,-500.0,0.00014991,2]
[422430507,1778943043000,-500.0,0.00014991,2]
[422430506,1778943043000,-500.0,0.00014991,2]
[422430509,1778943043000,-500.0,0.00014991,2]
[422430514,1778943043000,-500.0,0.00014991,2]
[422430516,1778943043000,-500.0,0.00014991,2]
[422430526,1778943043000,-500.0,0.00014991,2]
[422430517,1778943043000,-500.0,0.00014991,2]
[422430515,1778943043000,-500.0,0.00014991,2]
[422430502,1778943043000,-500.0,0.00014991,2]
[422430519,1778943043000,-500.0,0.00014991,2]
[422430534,1778943043000,-500.0,0.00014991,2]
[422430540,1778943043000,-500.0,0.00014991,2]
[422430530,1778943043000,-500.0,0.00014991,2]
[422430531,1778943043000,-500.0,0.00014991,2]
[422430527,1778943043000,-500.0,0.00014991,2]
[422430528,1778943043000,-500.0,0.00014991,2]
[422430529,1778943043000,-500.0,0.00014991,2]
[422430539,1778943043000,-500.0,0.00014991,2]
[422430520,1778943043000,-500.0,0.00014991,2]
[422430524,1778943043000,-500.0,0.00014991,2]
[422430522,1778943043000,-500.0,0.00014991,2]
[422430521,1778943043000,-500.0,0.00014991,2]
[422430523,1778943043000,-500.0,0.00014991,2]
[422430518,1778943043000,-500.0,0.00014991,2]
[422430525,1778943043000,-500.0,0.00014991,2]
[422430621,1778943044000,-151.0,0.00015,2]
[422430611,1778943044000,-198.911634,0.00015,2]
[422430610,1778943044000,-198.911634,0.00015,2]
[422430609,1778943044000,-198.911634,0.00015,2]
[422430618,1778943044000,-151.0,0.00015,2]
[422430600,1778943044000,-158.0,0.00015,2]
[422430619,1778943044000,-151.0,0.00015,2]
[422430602,1778943044000,-198.911634,0.00015,2]
[422430605,1778943044000,-198.911634,0.00015,2]
[422430604,1778943044000,-198.911634,0.00015,2]
[422430603,1778943044000,-198.911634,0.00015,2]
[422430620,1778943044000,-151.0,0.00015,2]
[422430612,1778943044000,-198.911634,0.00015,2]
[422430631,1778943044000,-1158.867927,0.00015,2]
[422430615,1778943044000,-151.0,0.00015,2]
[422430629,1778943044000,-1158.867927,0.00015,2]
[422430628,1778943044000,-1158.867927,0.00015,2]
[422430626,1778943044000,-2408.10803045,0.00015,2]
[422430622,1778943044000,-195.596786,0.00015,2]
[422430630,1778943044000,-1158.867927,0.00015,2]
[422430624,1778943044000,-1158.867927,0.00015,2]
[422430617,1778943044000,-151.0,0.00015,2]
[422430625,1778943044000,-1158.867927,0.00015,2]
[422430632,1778943044000,-1158.867927,0.00015,2]
[422430606,1778943044000,-198.911634,0.00015,2]
[422430623,1778943044000,-1158.867927,0.00015,2]
[422430616,1778943044000,-151.0,0.00015,2]
[422430613,1778943044000,-151.0,0.00015,2]
[422430614,1778943044000,-151.0,0.00015,2]
[422430633,1778943044000,-1158.867927,0.00015,2]
[422430601,1778943044000,-198.911634,0.00015,2]
[422430591,1778943044000,-8083.22155272,0.00015,2]
[422430598,1778943044000,-151.0,0.00015,2]
[422430627,1778943044000,-1158.867927,0.00015,2]
[422430569,1778943044000,-222.380445,0.00014991,2]
[422430577,1778943044000,-1084.73905795,0.00014999,5]
[422430578,1778943044000,-151.0,0.00014999,2]
[422430580,1778943044000,-500.0,0.00014999,2]
[422430579,1778943044000,-621.13564933,0.00014999,2]
[422430575,1778943044000,-151.0,0.00014997,2]
[422430582,1778943044000,-582.7820392,0.00014999,2]
[422430571,1778943044000,-222.380445,0.00014991,2]
[422430572,1778943044000,-222.380445,0.00014991,2]
[422430573,1778943044000,-222.380445,0.00014991,2]
[422430570,1778943044000,-151.0,0.00014991,2]
[422430574,1778943044000,-151.0,0.00014991,2]
[422430576,1778943044000,-500.0,0.00014998,2]
[422430583,1778943044000,-500.0,0.00014999,2]
[422430586,1778943044000,-300.0,0.00014999,2]
[422430585,1778943044000,-300.0,0.00014999,2]
[422430588,1778943044000,-300.0,0.00014999,2]
[422430594,1778943044000,-785.44,0.00015,2]
[422430584,1778943044000,-500.0,0.00014999,2]
[422430593,1778943044000,-250.0,0.00015,2]
[422430589,1778943044000,-2453652.08181486,0.00015,2]
[422430592,1778943044000,-1924750.89188509,0.00015,2]
[422430590,1778943044000,-2076.26775754,0.00015,2]
[422430595,1778943044000,-39771.05393103,0.00015,2]
[422430597,1778943044000,-1800.0,0.00015,2]
[422430596,1778943044000,-370120.44059409,0.00015,2]
[422430607,1778943044000,-198.911634,0.00015,2]
[422430608,1778943044000,-198.911634,0.00015,2]
[422430599,1778943044000,-158.0,0.00015,2]
[422430587,1778943044000,-300.0,0.00014999,2]
[422430634,1778943044000,-1158.867927,0.00015,2]
[422430647,1778943044000,-151.0,0.00015,2]
[422430670,1778943044000,-1763.02757,0.00015,2]
[422430668,1778943044000,-1763.02757,0.00015,2]
[422430673,1778943044000,-1763.02757,0.00015,2]
[422430675,1778943044000,-1763.02757,0.00015,2]
[422430677,1778943044000,-1763.02757,0.00015,2]
[422430674,1778943044000,-1763.02757,0.00015,2]
[422430676,1778943044000,-1763.02757,0.00015,2]
[422430686,1778943044000,-151.0,0.00015,2]
[422430682,1778943044000,-151.0,0.00015,2]
[422430681,1778943044000,-170.352023,0.00015,2]
[422430687,1778943044000,-151.0,0.00015,2]
[422430678,1778943044000,-1763.027561,0.00015,2]
[422430685,1778943044000,-151.0,0.00015,2]
[422430680,1778943044000,-151.0,0.00015,2]
[422430683,1778943044000,-151.0,0.00015,2]
[422430684,1778943044000,-151.0,0.00015,2]
[422430688,1778943044000,-151.0,0.00015,2]
[422430691,1778943044000,-153.598442,0.00015,2]
[422430690,1778943044000,-151.0,0.00015,2]
[422430689,1778943044000,-151.0,0.00015,2]
[422430692,1778943044000,-222.380445,0.00015,2]
[422430699,1778943044000,-222.380445,0.00015,2]
[422430693,1778943044000,-222.380445,0.00015,2]
[422430696,1778943044000,-222.380445,0.00015,2]
[422430697,1778943044000,-222.380445,0.00015,2]
[422430694,1778943044000,-222.380445,0.00015,2]
[422430695,1778943044000,-222.380445,0.00015,2]
[422430698,1778943044000,-222.380445,0.00015,2]
[422430636,1778943044000,-151.0,0.00015,2]
[422430662,1778943044000,-151.0,0.00015,2]
[422430669,1778943044000,-1763.02757,0.00015,2]
[422430679,1778943044000,-151.0,0.00015,2]
[422430671,1778943044000,-1763.02757,0.00015,2]
[422430667,1778943044000,-1763.02757,0.00015,2]
[422430638,1778943044000,-151.0,0.00015,2]
[422430642,1778943044000,-361.895303,0.00015,2]
[422430646,1778943044000,-361.895303,0.00015,2]
[422430637,1778943044000,-151.0,0.00015,2]
[422430644,1778943044000,-361.895303,0.00015,2]
[422430639,1778943044000,-361.895303,0.00015,2]
[422430641,1778943044000,-361.895303,0.00015,2]
[422430645,1778943044000,-151.0,0.00015,2]
[422430640,1778943044000,-361.895303,0.00015,2]
[422430643,1778943044000,-151.0,0.00015,2]
[422430659,1778943044000,-151.0,0.00015,2]
[422430649,1778943044000,-151.0,0.00015,2]
[422430648,1778943044000,-361.895303,0.00015,2]
[422430660,1778943044000,-151.0,0.00015,2]
[422430635,1778943044000,-1158.867927,0.00015,2]
[422430652,1778943044000,-361.895303,0.00015,2]
[422430650,1778943044000,-361.895303,0.00015,2]
[422430672,1778943044000,-1763.02757,0.00015,2]
[422430663,1778943044000,-151.0,0.00015,2]
[422430664,1778943044000,-151.0,0.00015,2]
[422430665,1778943044000,-151.0,0.00015,2]
[422430661,1778943044000,-151.0,0.00015,2]
[422430656,1778943044000,-361.895294,0.00015,2]
[422430666,1778943044000,-199.451167,0.00015,2]
[422430657,1778943044000,-151.0,0.00015,2]
[422430658,1778943044000,-151.0,0.00015,2]
[422430655,1778943044000,-361.895303,0.00015,2]
[422430653,1778943044000,-151.0,0.00015,2]
[422430651,1778943044000,-151.0,0.00015,2]
[422430654,1778943044000,-361.895303,0.00015,2]
[422430743,1778943045000,-538.715813,0.00015068,2]
[422430741,1778943045000,-538.715813,0.00015068,2]
[422430742,1778943045000,-538.715813,0.00015068,2]
[422430752,1778943045000,-587.0,0.0001529,2]
[422430734,1778943045000,-538.715813,0.00015068,2]
[422430753,1778943045000,-350.0,0.00015324,2]
[422430735,1778943045000,-538.715813,0.00015068,2]
[422430736,1778943045000,-538.715813,0.00015068,2]
[422430737,1778943045000,-538.715813,0.00015068,2]
[422430732,1778943045000,-538.715813,0.00015068,2]
[422430731,1778943045000,-538.715813,0.00015068,2]
[422430744,1778943045000,-538.715813,0.00015068,2]
[422430738,1778943045000,-538.715813,0.00015068,2]
[422430745,1778943045000,-538.715813,0.00015068,2]
[422430754,1778943045000,-2351.0,0.00015374,2]
[422430746,1778943045000,-538.715809,0.00015068,2]
[422430747,1778943045000,-433.0,0.00015071,2]
[422430749,1778943045000,-412.0,0.000152,2]
[422430750,1778943045000,-350.0,0.00015267,2]
[422430751,1778943045000,-350.0,0.00015286,2]
[422430755,1778943045000,-350.0,0.00015491,2]
[422430766,1778943045000,-237.0,0.00016,2]
[422430757,1778943045000,-500.0,0.00015571,2]
[422430756,1778943045000,-1000.0,0.000155,2]
[422430765,1778943045000,-150.0,0.000159,2]
[422430764,1778943045000,-150.35093008,0.000159,2]
[422430762,1778943045000,-464.54,0.00015858,2]
[422430760,1778943045000,-350.0,0.00015689,2]
[422430733,1778943045000,-538.715813,0.00015068,2]
[422430748,1778943045000,-477.6,0.00015098,2]
[422430730,1778943045000,-538.715813,0.00015068,2]
[422430759,1778943045000,-557.0,0.00015616,2]
[422430728,1778943045000,-538.715813,0.00015068,2]
[422430700,1778943045000,-222.380445,0.00015,2]
[422430702,1778943045000,-222.380445,0.00015,2]
[422430712,1778943045000,-373.120199,0.00015068,2]
[422430713,1778943045000,-373.120199,0.00015068,2]
[422430701,1778943045000,-222.380445,0.00015,2]
[422430704,1778943045000,-151.0,0.00015,2]
[422430711,1778943045000,-373.120199,0.00015068,2]
[422430710,1778943045000,-373.120199,0.00015068,2]
[422430707,1778943045000,-373.120199,0.00015068,2]
[422430703,1778943045000,-222.380442,0.00015,2]
[422430708,1778943045000,-373.120199,0.00015068,2]
[422430706,1778943045000,-900.0,0.00015068,2]
[422430705,1778943045000,-151.0,0.00015,2]
[422430709,1778943045000,-373.120199,0.00015068,2]
[422430740,1778943045000,-538.715813,0.00015068,2]
[422430714,1778943045000,-373.120199,0.00015068,2]
[422430716,1778943045000,-373.120199,0.00015068,2]
[422430721,1778943045000,-373.120199,0.00015068,2]
[422430722,1778943045000,-373.120199,0.00015068,2]
[422430718,1778943045000,-373.120199,0.00015068,2]
[422430717,1778943045000,-373.120199,0.00015068,2]
[422430725,1778943045000,-373.120199,0.00015068,2]
[422430719,1778943045000,-373.120199,0.00015068,2]
[422430724,1778943045000,-373.120199,0.00015068,2]
[422430723,1778943045000,-373.120199,0.00015068,2]
[422430726,1778943045000,-373.120205,0.00015068,2]
[422430720,1778943045000,-373.120199,0.00015068,2]
[422430727,1778943045000,-538.715813,0.00015068,2]
[422430739,1778943045000,-538.715813,0.00015068,2]
[422430729,1778943045000,-538.715813,0.00015068,2]
[422430715,1778943045000,-373.120199,0.00015068,2]
[422430761,1778943045000,-151.0,0.00015845,2]
[422430780,1778943045000,-2312.0,0.0001624,2]
[422430763,1778943045000,-350.0,0.00015898,2]
[422430791,1778943045000,-194.845595,0.00016438,2]
[422430800,1778943045000,-199.293253,0.00016438,2]
[422430801,1778943045000,-199.293253,0.00016438,2]
[422430790,1778943045000,-621.0,0.00016438,2]
[422430798,1778943045000,-199.293253,0.00016438,2]
[422430805,1778943045000,-199.293253,0.00016438,2]
[422430804,1778943045000,-199.293253,0.00016438,2]
[422430809,1778943045000,-340.951159,0.00016438,2]
[422430819,1778943045000,-340.951159,0.00016438,2]
[422430820,1778943045000,-340.951159,0.00016438,2]
[422430810,1778943045000,-340.951159,0.00016438,2]
[422430812,1778943045000,-340.951159,0.00016438,2]
[422430811,1778943045000,-340.951159,0.00016438,2]
[422430808,1778943045000,-199.293253,0.00016438,2]
[422430802,1778943045000,-199.293253,0.00016438,2]
[422430815,1778943045000,-340.951159,0.00016438,2]
[422430818,1778943045000,-340.951159,0.00016438,2]
[422430816,1778943045000,-340.951159,0.00016438,2]
[422430813,1778943045000,-340.951159,0.00016438,2]
[422430817,1778943045000,-340.951159,0.00016438,2]
[422430821,1778943045000,-340.951159,0.00016438,2]
[422430822,1778943045000,-340.951159,0.00016438,2]
[422430823,1778943045000,-340.951159,0.00016438,2]
[422430826,1778943045000,-151.0,0.00016438,2]
[422430824,1778943045000,-340.951159,0.00016438,2]
[422430825,1778943045000,-151.0,0.00016438,2]
[422430827,1778943045000,-151.0,0.00016438,2]
[422430829,1778943045000,-273.802414,0.00016438,2]
[422430831,1778943045000,-300.0,0.00016438,3]
[422430758,1778943045000,-664.0,0.00015616,2]
[422430814,1778943045000,-340.951159,0.00016438,2]
[422430796,1778943045000,-199.293253,0.00016438,2]
[422430828,1778943045000,-151.0,0.00016438,2]
[422430785,1778943045000,-736.0,0.00016375,2]
[422430806,1778943045000,-199.293253,0.00016438,2]
[422430767,1778943045000,-1984.0,0.00016,3]